bitfinex/quotes_BTCUSD_20250206
["timestamp","ask_amount","ask_price","bid_price","bid_amount"]
[1738882991875,0.00768741,96852.0,96847.0,0.154881]
[1738882992191,0.154872,96854.0,96847.0,0.154881]
[1738882992348,0.20649,96857.0,96843.0,0.206519]
[1738882992349,0.00768652,96851.0,96843.0,0.206519]
[1738882992550,0.154855,96865.0,96843.0,0.154889]
[1738882992780,0.00768385,96850.0,96849.0,0.15488]
[1738882992939,0.154848,96869.0,96842.0,0.09783463]
[1738882993144,0.154843,96872.0,96865.0,0.154853]
[1738882993346,0.00768637,96868.0,96863.0,0.154857]
[1738882993551,0.154848,96869.0,96862.0,0.154858]
[1738882993753,0.00768549,96867.0,96862.0,0.154858]
[1738882993954,0.00768637,96868.0,96862.0,0.154858]
[1738882994173,0.0076846,96866.0,96860.0,0.154861]
[1738882994530,0.15485,96868.0,96859.0,0.206485]
[1738882994728,0.00768371,96865.0,96864.0,0.154856]
[1738882994885,0.001,96869.0,96779.0,0.05390114]
[1738882994886,0.001,96869.0,96845.0,0.00103238]
[1738882995085,0.001,96869.0,96847.0,0.361394]
[1738882995284,0.00768637,96868.0,96848.0,0.16099567]
[1738882995510,0.00768637,96868.0,96848.0,0.10353604]
[1738882995744,0.00768637,96868.0,96866.0,0.154852]
[1738882995919,0.001,96869.0,96852.0,0.2065]
[1738882996096,0.001,96869.0,96853.0,0.154872]
[1738882996318,0.154869,96856.0,96849.0,0.15488]
[1738882996523,0.206478,96863.0,96842.0,0.09783463]
[1738882996726,0.00767839,96855.0,96843.0,0.567927]
[1738882996967,0.154858,96863.0,96843.0,0.206519]
[1738882997168,0.154858,96863.0,96856.0,0.154867]
[1738882997358,0.0076846,96862.0,96843.0,0.02071581]
[1738882997558,0.0076846,96862.0,96861.0,0.15486]
[1738882997760,0.0002245,96868.0,96863.0,0.154856]
[1738882997921,0.1550745,96868.0,96861.0,0.15486]
[1738882998121,0.00768549,96867.0,96843.0,0.04757085]
[1738882998348,0.00768549,96867.0,96861.0,0.15486]
[1738882998547,0.00768549,96867.0,96858.0,0.206486]
[1738882998548,0.16253649,96867.0,96858.0,0.206486]
[1738882998712,0.16253649,96867.0,96860.0,0.154862]
[1738882998912,0.16253649,96867.0,96861.0,0.15486]
[1738882999110,0.00768549,96867.0,96865.0,0.154854]
[1738882999429,0.00768549,96867.0,96856.0,0.206492]
[1738882999639,0.0002245,96868.0,96856.0,0.206492]
[1738882999852,0.0002245,96868.0,96861.0,0.15486]
[1738883000042,0.00768549,96867.0,96844.0,0.10250365]
[1738883000236,0.00768549,96867.0,96836.0,0.356534]
[1738883000237,0.0002245,96868.0,96836.0,0.15]
[1738883000442,0.00768904,96867.0,96831.0,0.3241]
[1738883000648,0.00768904,96867.0,96834.0,0.206538]
[1738883000864,0.154868,96857.0,96835.0,0.0010325]
[1738883001174,0.206485,96860.0,96835.0,0.0010325]
[1738883001508,0.00768194,96859.0,96835.0,0.0010325]
[1738883001672,0.15487,96855.0,96848.0,0.15488]
[1738883001887,0.16254705,96858.0,96834.0,0.206538]
[1738883002038,0.0076775,96854.0,96853.0,0.154873]
[1738883002252,0.206472,96866.0,96853.0,0.154873]
[1738883002253,0.206476,96864.0,96853.0,0.154873]
[1738883002456,0.0076775,96854.0,96853.0,0.154873]
[1738883002704,0.0076775,96854.0,96845.0,0.206513]
[1738883002900,0.154866,96858.0,96839.0,0.206527]
[1738883003108,0.154866,96858.0,96851.0,0.154876]
[1738883003311,0.00767777,96857.0,96851.0,0.154876]
[1738883004064,0.16254477,96857.0,96851.0,0.154876]
[1738883004591,0.15487,96856.0,96850.0,0.154878]
[1738883005007,0.00767599,96855.0,96850.0,0.154878]
[1738883005222,0.154878,96851.0,96844.0,0.154887]
[1738883005403,0.00767599,96855.0,96842.0,0.01482297]
[1738883005603,0.154888,96845.0,96842.0,0.01482297]
[1738883005806,0.154886,96845.0,96832.0,0.206542]
[1738883006114,0.00766575,96844.0,96843.0,0.154889]
[1738883006308,0.154879,96850.0,96843.0,0.154889]
[1738883006445,0.00766575,96844.0,96843.0,0.154889]
[1738883006640,0.154879,96850.0,96837.0,0.206532]
[1738883006849,0.154879,96850.0,96844.0,0.154888]
[1738883007097,0.154884,96847.0,96841.0,0.154892]
[1738883007256,0.00767019,96849.0,96842.0,0.154891]
[1738883007458,0.154881,96848.0,96842.0,0.154891]
[1738883007717,0.1625503,96848.0,96842.0,0.154891]
[1738883007920,0.154884,96847.0,96840.0,0.154893]
[1738883008144,0.16255241,96847.0,96841.0,0.154892]
[1738883008534,0.00766841,96847.0,96842.0,0.154891]
[1738883008772,0.00766841,96847.0,96838.0,0.10250365]
[1738883008970,0.00766841,96847.0,96846.0,0.154885]
[1738883009174,0.154874,96853.0,96838.0,0.10250365]
[1738883009380,0.00766841,96847.0,96838.0,0.10250365]
[1738883009582,0.206486,96859.0,96838.0,0.10250365]
[1738883009760,0.206469,96867.0,96841.0,0.0001068]
[1738883009964,0.154875,96852.0,96846.0,0.154884]
[1738883010944,0.00767196,96851.0,96846.0,0.154884]
[1738883011992,0.00767196,96851.0,96847.0,0.154882]
[1738883012521,0.00767108,96850.0,96841.0,0.2066298]
[1738883012810,0.154882,96848.0,96842.0,0.15489]
[1738883013172,0.00766841,96847.0,96842.0,0.15489]
[1738883013387,0.00766841,96847.0,96843.0,0.154889]
[1738883013587,0.00766841,96847.0,96841.0,0.01353436]
[1738883013787,0.00766841,96847.0,96842.0,0.15489]
[1738883013988,0.00766841,96847.0,96841.0,0.01353436]
[1738883014190,0.154883,96847.0,96841.0,0.16842536]
[1738883014393,0.206502,96851.0,96842.0,0.15489]
[1738883014632,0.00766752,96846.0,96841.0,0.01353436]
[1738883014828,0.206485,96860.0,96841.0,0.01353436]
[1738883015048,0.154883,96848.0,96841.0,0.01353436]
[1738883015250,0.154883,96848.0,96842.0,0.154891]
[1738883015454,0.154883,96848.0,96841.0,0.01353436]
[1738883015455,0.154891,96842.0,96841.0,0.01353436]
[1738883015626,0.154891,96842.0,96841.0,0.0001068]
[1738883015827,0.16255401,96842.0,96841.0,0.0001068]
[1738883017529,0.23805401,96842.0,96841.0,0.0001068]
[1738883022031,0.00766301,96842.0,96841.0,0.0001068]
[1738883022439,0.206487,96859.0,96841.0,0.0001068]
[1738883022613,0.206487,96859.0,96849.0,0.154878]
[1738883022614,0.154865,96858.0,96849.0,0.154878]
[1738883022813,0.00767723,96858.0,96841.0,0.0001068]
[1738883023118,0.00767723,96858.0,96856.0,0.154868]
[1738883023347,0.00022428,96857.0,96841.0,0.0011068]
[1738883023479,0.00022428,96857.0,96851.0,0.154875]
[1738883023895,0.00767222,96856.0,96854.0,0.154872]
[1738883024255,0.00767222,96856.0,96851.0,0.154876]
[1738883024392,0.00767222,96856.0,96853.0,0.154873]
[1738883024816,0.154871,96855.0,96841.0,0.206524]
[1738883025017,0.00767255,96854.0,96839.0,0.01390463]
[1738883025264,0.00767255,96854.0,96815.0,0.28958966]
[1738883025265,0.154874,96853.0,96846.0,0.154883]
[1738883025438,0.00767078,96852.0,96840.0,0.206526]
[1738883025637,0.154871,96855.0,96847.0,0.154882]
[1738883025853,0.16254455,96854.0,96847.0,0.154882]
[1738883026084,0.00767255,96854.0,96838.0,0.29629665]
[1738883026257,0.154876,96852.0,96844.0,0.154887]
[1738883026443,0.00766989,96851.0,96845.0,0.154886]
[1738883027273,0.00766989,96851.0,96838.0,0.1922723]
[1738883027451,0.154882,96848.0,96842.0,0.154891]
[1738883027662,0.00766633,96847.0,96842.0,0.154891]
[1738883027864,0.00766633,96847.0,96845.0,0.154886]
[1738883028110,0.206498,96854.0,96843.0,0.154888]
[1738883028324,0.00766545,96846.0,96841.0,0.154891]
[1738883028442,0.15488,96849.0,96842.0,0.154891]
[1738883028646,0.00766722,96848.0,96839.0,0.206528]
[1738883028846,0.154883,96847.0,96839.0,0.206528]
[1738883029107,0.00766545,96846.0,96842.0,0.15489]
[1738883029313,0.00766545,96846.0,96838.0,0.01356865]
[1738883029314,0.00022428,96857.0,96838.0,0.16846465]
[1738883029509,0.00766456,96845.0,96839.0,0.154895]
[1738883029715,0.00022428,96857.0,96833.0,0.154905]
[1738883029917,0.00766367,96844.0,96827.0,0.02044056]
[1738883030137,0.00766367,96844.0,96815.0,0.08301166]
[1738883030138,0.12911584,96841.0,96831.0,0.01410766]
[1738883030340,0.154917,96827.0,96819.0,0.538]
[1738883030501,0.0767,96848.0,96815.0,0.16591166]
[1738883030701,0.154897,96839.0,96830.0,0.154909]
[1738883030903,0.154898,96838.0,96831.0,0.154908]
[1738883031315,0.154896,96839.0,96829.0,0.154911]
[1738883031504,0.206524,96841.0,96831.0,0.154907]
[1738883031505,0.154893,96841.0,96831.0,0.154907]
[1738883031829,0.154885,96846.0,96829.0,0.154911]
[1738883032029,0.154901,96836.0,96829.0,0.154911]
[1738883032403,0.154904,96834.0,96825.0,0.25196475]
[1738883032607,0.206523,96842.0,96825.0,0.25196475]
[1738883032608,0.154907,96832.0,96825.0,0.09704775]
[1738883032796,0.154907,96832.0,96825.0,0.01403609]
[1738883033199,0.154907,96832.0,96829.0,0.001]
[1738883033704,0.206539,96834.0,96825.0,0.01403609]
[1738883033856,0.154906,96833.0,96826.0,0.154916]
[1738883034065,0.154906,96833.0,96825.0,0.01503609]
[1738883034416,0.154908,96832.0,96825.0,0.16995409]
[1738883034905,0.154908,96832.0,96825.0,0.01503609]
[1738883035078,0.206517,96844.0,96825.0,0.01503609]
[1738883035260,0.206517,96844.0,96825.0,0.01403609]
[1738883035460,0.15491,96830.0,96825.0,0.01503609]
[1738883035689,0.154912,96829.0,96825.0,0.01503609]
[1738883036046,0.154912,96829.0,96825.0,0.01403609]
[1738883036362,0.154915,96827.0,96825.0,0.01403609]
[1738883036975,0.15491,96831.0,96825.0,0.01403609]
[1738883037184,0.206519,96843.0,96825.0,0.01603609]
[1738883037382,0.154911,96830.0,96825.0,0.01603609]
[1738883037598,0.154912,96829.0,96825.0,0.01603609]
[1738883038022,0.10250365,96845.0,96825.0,0.01603609]
[1738883038320,0.154917,96826.0,96825.0,0.01403609]
[1738883038681,0.154917,96826.0,96825.0,0.01603609]
[1738883039083,0.154917,96826.0,96825.0,0.01403609]
[1738883039600,0.154917,96826.0,96825.0,0.01603609]
[1738883039823,0.154917,96826.0,96825.0,0.00213769]
[1738883040021,0.16270298,96826.0,96825.0,0.00213769]
[1738883041324,0.16270298,96826.0,96825.0,0.00013769]
[1738883041919,0.39070298,96826.0,96825.0,0.00013769]
[1738883042201,0.49320663,96826.0,96825.0,0.00013769]
[1738883042981,0.49420663,96826.0,96825.0,0.00013769]
[1738883045173,0.50232663,96826.0,96825.0,0.00013769]
[1738883046848,0.50232663,96826.0,96825.0,0.00024459]
[1738883048729,0.42432663,96826.0,96825.0,0.00024459]
[1738883049496,0.26128963,96826.0,96825.0,0.00024459]
[1738883049696,0.00878598,96826.0,96825.0,0.00024459]
[1738883050025,0.154918,96825.0,96813.0,0.01354614]
[1738883050227,0.12911584,96823.0,96802.0,0.154954]
[1738883050424,0.154944,96809.0,96802.0,0.154954]
[1738883050559,0.154944,96809.0,96802.0,0.16888201]
[1738883050762,0.16270768,96808.0,96802.0,0.01392801]
[1738883051133,0.16270768,96808.0,96800.0,0.154957]
[1738883051334,0.00776168,96808.0,96800.0,0.154957]
[1738883051510,0.15494,96812.0,96800.0,0.154957]
[1738883051645,0.00776079,96807.0,96797.0,0.206617]
[1738883051848,0.154962,96798.0,96790.0,0.0766]
[1738883052053,0.0077519,96797.0,96790.0,0.0766]
[1738883052339,0.154963,96797.0,96790.0,0.09354171]
[1738883052542,0.00775101,96796.0,96790.0,0.09354171]
[1738883052700,0.0777,96819.0,96790.0,0.30017371]
[1738883052919,0.00775012,96795.0,96794.0,0.154968]
[1738883053118,0.154949,96806.0,96793.0,0.206624]
[1738883053285,0.206592,96810.0,96795.0,0.154965]
[1738883053486,0.154939,96813.0,96801.0,0.154956]
[1738883053685,0.154942,96811.0,96801.0,0.15541694]
[1738883053931,0.0472,96845.0,96801.0,0.15541694]
[1738883053932,0.00776346,96810.0,96801.0,0.00046094]
[1738883054142,0.0472,96845.0,96814.0,0.154934]
[1738883054143,0.15,96829.0,96814.0,0.154934]
[1738883054309,0.00776257,96809.0,96801.0,0.00046094]
[1738883054508,0.356554,96827.0,96810.0,0.154941]
[1738883054689,0.15,96825.0,96810.0,0.154941]
[1738883054905,0.154923,96822.0,96801.0,0.00046094]
[1738883055106,0.15,96823.0,96801.0,0.00046094]
[1738883055308,0.154926,96821.0,96809.0,0.154944]
[1738883055514,0.15,96823.0,96809.0,0.154944]
[1738883055711,0.15,96823.0,96801.0,0.00046094]
[1738883055919,0.154926,96820.0,96810.0,0.154941]
[1738883056118,0.154926,96820.0,96807.0,0.206595]
[1738883056317,0.154926,96820.0,96809.0,0.154944]
[1738883056527,0.154928,96819.0,96809.0,0.154944]
[1738883056726,0.154928,96819.0,96807.0,0.206595]
[1738883056927,0.15493,96818.0,96802.0,0.361562]
[1738883057243,0.15493,96818.0,96801.0,0.20706794]
[1738883057443,0.15493,96818.0,96807.0,0.154947]
[1738883057846,0.15,96825.0,96801.0,0.00046094]
[1738883058363,0.154938,96813.0,96801.0,0.15541594]
[1738883058616,0.12911584,96811.0,96801.0,0.00046094]
[1738883058785,0.154953,96803.0,96801.0,0.00046094]
[1738883058987,0.154955,96802.0,96801.0,0.00046094]
[1738883059900,0.154974,96791.0,96781.0,0.0645794]
[1738883060254,0.154974,96791.0,96781.0,0.2195684]
[1738883060459,0.154974,96791.0,96781.0,0.154989]
[1738883061183,0.154974,96791.0,96782.0,0.154987]
[1738883061404,0.154977,96789.0,96782.0,0.154987]
[1738883062152,0.12911584,96810.0,96779.0,0.00233806]
[1738883062153,0.154971,96792.0,96784.0,0.154982]
[1738883062378,0.15,96808.0,96779.0,0.00233806]
[1738883062684,0.10250365,96807.0,96782.0,0.206649]
[1738883062812,0.154972,96792.0,96783.0,0.154985]
[1738883063006,0.154973,96791.0,96783.0,0.154985]
[1738883063460,0.154973,96791.0,96784.0,0.154983]
[1738883064576,0.206624,96794.0,96784.0,0.154983]
[1738883064804,0.154971,96792.0,96784.0,0.155983]
[1738883065001,0.154968,96795.0,96787.0,0.154979]
[1738883065202,0.2066,96805.0,96784.0,0.207644]
[1738883065362,0.30910365,96805.0,96785.0,0.154981]
[1738883065565,0.15497,96793.0,96785.0,0.154981]
[1738883065763,0.206603,96804.0,96785.0,0.206643]
[1738883065949,0.10250365,96805.0,96785.0,0.206643]
[1738883066144,0.30910565,96805.0,96785.0,0.206643]
[1738883066406,0.15496,96799.0,96790.0,0.154973]
[1738883066788,0.10250365,96805.0,96789.0,0.154976]
[1738883066974,0.154966,96795.0,96779.0,0.01995196]
[1738883067176,0.154964,96797.0,96787.0,0.154978]
[1738883067374,0.154961,96799.0,96789.0,0.154976]
[1738883067596,0.154963,96798.0,96788.0,0.154976]
[1738883067770,0.154963,96798.0,96789.0,0.154975]
[1738883068195,0.15496,96799.0,96789.0,0.154975]
[1738883068398,0.154956,96802.0,96792.0,0.154971]
[1738883068616,0.10250365,96805.0,96779.0,0.01995196]
[1738883068818,0.154952,96804.0,96795.0,0.154966]
[1738883069148,0.154952,96804.0,96793.0,0.361594]
[1738883069325,0.0752,96822.0,96790.0,0.12911584]
[1738883069523,0.154939,96813.0,96796.0,0.206619]
[1738883069726,0.154944,96810.0,96800.0,0.154958]
[1738883069943,0.154944,96810.0,96789.0,0.361611]
[1738883070128,0.154944,96810.0,96800.0,0.154957]
[1738883071004,0.154944,96809.0,96800.0,0.154957]
[1738883072424,0.15,96813.0,96789.0,0.0001069]
[1738883072628,0.12911584,96810.0,96789.0,0.0001069]
[1738883072812,0.154965,96796.0,96789.0,0.0001069]
[1738883073166,0.154968,96794.0,96789.0,0.0001069]
[1738883073607,0.15497,96793.0,96789.0,0.0001069]
[1738883073787,60.0,97151.0,96789.0,0.0001069]
[1738883073788,0.154973,96791.0,96789.0,0.0001069]
[1738883073963,0.10250365,96790.0,96789.0,0.0011069]
[1738883074164,0.25747765,96790.0,96789.0,0.0011069]
[1738883074571,0.25747765,96790.0,96789.0,0.0001069]
[1738883074771,0.25747765,96790.0,96789.0,0.0011069]
[1738883076077,0.154938,96813.0,96803.0,0.154953]
[1738883076362,0.15494,96812.0,96791.0,0.20663]
[1738883076479,0.15494,96812.0,96801.0,0.154955]
[1738883076683,0.15494,96812.0,96802.0,0.154954]
[1738883076901,0.15494,96812.0,96790.0,0.252831]
[1738883077102,0.154942,96811.0,96800.0,0.154957]
[1738883077752,0.154942,96811.0,96801.0,0.154955]
[1738883078090,0.154942,96811.0,96802.0,0.154955]
[1738883078454,0.206615,96798.0,96789.0,0.0001069]
[1738883078670,0.154963,96797.0,96789.0,0.0001069]
[1738883078887,0.154968,96794.0,96789.0,0.0001069]
[1738883079577,0.154966,96796.0,96789.0,0.0001069]
[1738883080360,0.154966,96796.0,96789.0,0.0011069]
[1738883080559,0.206594,96808.0,96789.0,0.0011069]
[1738883080761,0.154962,96798.0,96789.0,0.1550819]
[1738883081336,0.206611,96801.0,96789.0,0.0001069]
[1738883081690,0.10250365,96801.0,96789.0,0.0001069]
[1738883081839,0.12911584,96810.0,96789.0,0.0001069]
[1738883081840,0.154974,96790.0,96789.0,0.0001069]
[1738883084293,0.206613,96799.0,96789.0,0.0001069]
[1738883084495,0.154966,96796.0,96789.0,0.0001069]
[1738883084698,0.206591,96810.0,96791.0,0.20663]
[1738883084900,0.154949,96807.0,96792.0,0.078]
[1738883085115,0.206591,96810.0,96792.0,0.078]
[1738883085116,0.10250365,96806.0,96797.0,0.154962]
[1738883085542,0.25745265,96806.0,96797.0,0.154962]
[1738883086163,0.154951,96805.0,96797.0,0.154962]
[1738883086355,0.10250365,96806.0,96798.0,0.154961]
[1738883086579,0.25745265,96806.0,96798.0,0.154961]
[1738883086859,0.10250365,96806.0,96792.0,0.078]
[1738883087058,0.154956,96802.0,96792.0,0.078]
[1738883087284,0.154958,96801.0,96792.0,0.23297]
[1738883087622,0.15496,96799.0,96792.0,0.078]
[1738883087866,0.10250365,96806.0,96792.0,0.078]
[1738883088187,0.154968,96794.0,96789.0,0.01716726]
[1738883088404,0.154968,96794.0,96789.0,0.0001069]
[1738883089115,0.154965,96796.0,96789.0,0.0001069]
[1738883089233,0.154967,96795.0,96789.0,0.0001069]
[1738883089857,0.10250365,96806.0,96795.0,0.154966]
[1738883089858,0.154953,96804.0,96795.0,0.154966]
[1738883090066,0.154953,96804.0,96790.0,0.206632]
[1738883090067,0.154955,96803.0,96794.0,0.154967]
[1738883091251,0.154955,96802.0,96789.0,0.01762016]
[1738883091452,0.154952,96805.0,96796.0,0.154964]
[1738883091651,0.15495,96805.0,96790.0,0.206632]
[1738883091864,0.15495,96805.0,96797.0,0.154963]
[1738883092350,0.10250365,96806.0,96789.0,0.01762016]
[1738883092578,0.0801,96821.0,96789.0,0.01762016]
[1738883092770,0.002,96802.0,96799.0,0.206613]
[1738883092905,0.002,96802.0,96801.0,0.154957]
[1738883093111,0.154937,96814.0,96799.0,0.206613]
[1738883093307,0.206577,96817.0,96806.0,0.154948]
[1738883093557,0.412944,96866.0,96790.0,0.0495]
[1738883093558,0.15,96816.0,96790.0,0.0495]
[1738883093727,0.154934,96815.0,96807.0,0.154946]
[1738883094157,0.15,96816.0,96790.0,0.0495]
[1738883094340,0.0012245,96809.0,96808.0,0.154945]
[1738883094741,0.0012245,96809.0,96799.0,0.206613]
[1738883094913,0.0012245,96809.0,96806.0,0.135948]
[1738883095643,0.0002245,96809.0,96808.0,0.154945]
[1738883096456,0.0012245,96809.0,96808.0,0.154945]
[1738883096862,0.0002245,96809.0,96808.0,0.154945]
[1738883097679,0.0002245,96809.0,96808.0,0.1725728]
[1738883098817,0.0002245,96809.0,96808.0,0.1745728]
[1738883101184,0.0002245,96809.0,96808.0,0.0196278]
[1738883101595,0.0002245,96809.0,96808.0,0.0176278]
[1738883101792,0.0002245,96809.0,96806.0,0.154948]
[1738883102125,0.0002245,96809.0,96808.0,0.001]
[1738883102426,0.0002245,96809.0,96807.0,0.154947]
[1738883102683,0.0002245,96809.0,96806.0,0.154948]
[1738883102852,0.0002245,96809.0,96808.0,0.001]
[1738883103229,0.0002245,96809.0,96804.0,0.0958845]
[1738883103429,0.0002245,96809.0,96808.0,0.154945]
[1738883103855,0.0002245,96809.0,96807.0,0.001]
[1738883104264,0.0002245,96809.0,96808.0,0.154945]
[1738883105121,0.10272815,96809.0,96808.0,0.001]
[1738883105288,0.46426615,96809.0,96808.0,0.001]
[1738883105500,0.154961,96798.0,96784.0,0.0828]
[1738883106558,0.154961,96798.0,96797.0,0.0021069]
[1738883107771,0.154961,96798.0,96797.0,0.0001069]
[1738883108136,0.154961,96798.0,96797.0,0.0021069]
[1738883108580,0.154961,96798.0,96797.0,0.0001069]
[1738883109047,0.154961,96798.0,96797.0,0.0021069]
[1738883114949,0.16097959,96798.0,96797.0,0.0021069]
[1738883115561,0.26348324,96798.0,96797.0,0.0021069]
[1738883116251,0.26348324,96798.0,96797.0,0.0001069]
[1738883116252,0.41348324,96798.0,96797.0,0.0001069]
[1738883117073,0.15,96797.0,96779.0,0.00233806]
[1738883117274,0.30499,96780.0,96779.0,0.00233806]
[1738883117496,0.40749365,96780.0,96779.0,0.00013834]
[1738883117758,0.41349099,96780.0,96779.0,0.00013834]
[1738883119228,0.41449099,96780.0,96779.0,0.00013834]
[1738883119790,0.155003,96772.0,96764.0,0.0644569]
[1738883119972,0.155007,96770.0,96764.0,0.0644569]
[1738883120172,0.10849939,96771.0,96759.0,0.155023]
[1738883120375,0.00599436,96769.0,96759.0,0.155023]
[1738883120602,0.15503,96755.0,96751.0,0.01609479]
[1738883121213,0.16101467,96755.0,96751.0,0.01609479]
[1738883121994,0.16101467,96755.0,96754.0,0.0021069]
[1738883123495,0.16101467,96755.0,96754.0,0.0001069]
[1738883124150,0.00598467,96755.0,96754.0,0.0001069]
[1738883124358,0.16101467,96755.0,96754.0,0.0001069]
[1738883124996,0.26351832,96755.0,96754.0,0.0011069]
[1738883125200,0.26351832,96755.0,96754.0,0.0001069]
[1738883125634,0.26351832,96755.0,96754.0,0.0011069]
[1738883127283,0.26351832,96755.0,96754.0,0.0001069]
[1738883128940,0.49131832,96755.0,96754.0,0.0001069]
[1738883129171,0.52431832,96755.0,96754.0,0.0001069]
[1738883129398,0.57021832,96755.0,96754.0,0.0001069]
[1738883129619,0.58599884,96755.0,96754.0,0.0001069]
[1738883129801,0.58599884,96755.0,96747.0,0.0001069]
[1738883129802,0.15,96754.0,96721.0,0.07502954]
[1738883130008,0.12911584,96740.0,96721.0,0.07502954]
[1738883130151,0.10844926,96739.0,96721.0,0.07502954]
[1738883130353,0.10844926,96739.0,96730.0,0.155069]
[1738883130584,0.10844926,96739.0,96722.0,0.206778]
[1738883130585,0.155064,96734.0,96722.0,0.206778]
[1738883130753,0.00593738,96733.0,96725.0,0.155078]
[1738883130955,0.15506,96737.0,96726.0,0.155076]
[1738883131158,0.00593946,96736.0,96726.0,0.00013834]
[1738883131357,0.00593946,96736.0,96727.0,0.155075]
[1738883131564,0.155041,96749.0,96734.0,0.155063]
[1738883131935,0.00594777,96748.0,96730.0,0.206761]
[1738883132087,0.00594777,96748.0,96741.0,0.155052]
[1738883132270,0.155028,96757.0,96743.0,0.155049]
[1738883132467,0.10250365,96756.0,96740.0,0.155053]
[1738883132674,0.10250365,96756.0,96730.0,0.206761]
[1738883132675,0.11001833,96756.0,96730.0,0.206761]
[1738883132881,0.26504733,96756.0,96742.0,0.155051]
[1738883133269,0.11001833,96756.0,96743.0,0.155049]
[1738883133476,0.11001833,96756.0,96731.0,0.206758]
[1738883133672,0.11001833,96756.0,96744.0,0.155047]
[1738883133876,0.002,96749.0,96744.0,0.155047]
[1738883134111,0.002,96749.0,96742.0,0.15505]
[1738883134315,0.002,96749.0,96746.0,0.155044]
[1738883134544,0.10250365,96756.0,96728.0,0.04603367]
[1738883134746,0.10250365,96756.0,96744.0,0.155047]
[1738883134948,0.00751414,96755.0,96745.0,0.155046]
[1738883135151,0.10250365,96754.0,96728.0,0.045]
[1738883135421,0.155053,96741.0,96728.0,0.045]
[1738883135608,0.00750605,96740.0,96728.0,0.045]
[1738883135815,0.12911584,96752.0,96728.0,0.045]
[1738883136040,0.15505,96743.0,96729.0,0.155072]
[1738883136249,0.00750713,96742.0,96728.0,0.045]
[1738883136651,0.00750713,96742.0,96740.0,0.155053]
[1738883136862,0.15503,96756.0,96743.0,0.155049]
[1738883137188,0.001,96754.0,96743.0,0.155049]
[1738883137351,0.10250365,96753.0,96743.0,0.155049]
[1738883137562,0.11001309,96753.0,96743.0,0.155049]
[1738883137807,0.11001309,96753.0,96743.0,0.155048]
[1738883138009,0.11001309,96753.0,96740.0,0.002]
[1738883138164,0.11001309,96753.0,96743.0,0.155048]
[1738883138366,0.00750944,96753.0,96728.0,0.195]
[1738883138575,0.12911584,96780.0,96761.0,0.15502]
[1738883138778,0.11003385,96779.0,96750.0,0.0806]
[1738883139002,0.155005,96771.0,96757.0,0.155027]
[1738883139231,0.0075294,96770.0,96757.0,0.155027]
[1738883139621,0.0075294,96770.0,96751.0,0.206716]
[1738883139832,0.10250365,96769.0,96746.0,0.206724]
[1738883140075,0.00752832,96768.0,96739.0,0.0802]
[1738883140218,0.155014,96766.0,96745.0,0.206728]
[1738883140419,0.1625461,96765.0,96752.0,0.155035]
[1738883140845,0.155026,96758.0,96744.0,0.155047]
[1738883141050,0.00752679,96757.0,96748.0,0.155041]
[1738883141267,0.155021,96761.0,96748.0,0.155041]
[1738883141488,0.00752651,96756.0,96741.0,0.1708472]
[1738883141689,0.206707,96755.0,96741.0,0.0208472]
[1738883141888,0.206707,96755.0,96737.0,0.0159868]
[1738883141889,0.206707,96755.0,96737.0,0.1710458]
[1738883142109,0.00752518,96754.0,96737.0,0.1710458]
[1738883142319,0.155041,96749.0,96737.0,0.1710458]
[1738883142514,0.155046,96746.0,96737.0,0.1710458]
[1738883142719,0.361767,96747.0,96737.0,0.0159868]
[1738883142936,0.00765059,96745.0,96737.0,0.1710448]
[1738883143122,0.00765113,96746.0,96738.0,0.01915087]
[1738883143323,0.155049,96744.0,96738.0,0.01915087]
[1738883143587,0.00764951,96743.0,96738.0,0.01915087]
[1738883143787,0.155046,96746.0,96738.0,0.01915087]
[1738883143988,0.00764897,96742.0,96738.0,0.01915087]
[1738883144240,0.155046,96746.0,96738.0,0.01915087]
[1738883144446,0.00764721,96741.0,96738.0,0.01415087]
[1738883144641,0.155046,96746.0,96738.0,0.16920787]
[1738883144843,0.20672,96750.0,96738.0,0.16920787]
[1738883144844,0.00764667,96740.0,96738.0,0.16920787]
[1738883145041,0.155041,96749.0,96738.0,0.01415087]
[1738883145225,0.155041,96749.0,96740.0,0.155054]
[1738883145646,0.155037,96752.0,96737.0,0.0159868]
[1738883145960,0.00765099,96748.0,96744.0,0.155048]
[1738883146159,0.155037,96752.0,96744.0,0.155048]
[1738883146337,0.12911584,96770.0,96744.0,0.155048]
[1738883146539,0.00765567,96751.0,96744.0,0.155048]
[1738883146764,0.155035,96752.0,96744.0,0.155048]
[1738883146972,0.00765567,96751.0,96744.0,0.155048]
[1738883147153,0.00765567,96751.0,96744.0,0.156048]
[1738883147647,0.00765567,96751.0,96744.0,0.155048]
[1738883148486,0.155033,96754.0,96745.0,0.155046]
[1738883148715,0.00765513,96750.0,96745.0,0.155046]
[1738883149039,0.00765459,96749.0,96744.0,0.155047]
[1738883149226,0.155034,96753.0,96742.0,0.03071157]
[1738883149397,0.00765406,96748.0,96744.0,0.001]
[1738883149601,0.155034,96753.0,96744.0,0.001]
[1738883149797,0.00765352,96747.0,96745.0,0.155046]
[1738883150019,0.206707,96756.0,96745.0,0.155046]
[1738883150184,0.00765298,96746.0,96745.0,0.155046]
[1738883150377,0.155034,96753.0,96745.0,0.155046]
[1738883150586,0.00765621,96752.0,96745.0,0.155046]
[1738883150805,0.155037,96751.0,96744.0,0.001]
[1738883151009,0.00765513,96750.0,96744.0,0.001]
[1738883151211,0.155035,96753.0,96743.0,0.155049]
[1738883151534,0.00765734,96752.0,96743.0,0.155049]
[1738883151736,0.00765734,96752.0,96744.0,0.155048]
[1738883152615,0.00765734,96752.0,96745.0,0.001]
[1738883153062,0.00765734,96752.0,96741.0,0.206736]
[1738883153236,0.00765734,96752.0,96744.0,0.156047]
[1738883153821,0.155037,96751.0,96739.0,0.206741]
[1738883154063,0.00765626,96750.0,96745.0,0.001]
[1738883154650,0.155035,96752.0,96745.0,0.001]